bitfinex/quotes_BTCUSD_20250102
["timestamp","ask_amount","ask_price","bid_price","bid_amount"]
[1735848982149,0.48160832,97741.0,97740.0,0.007]
[1735848985310,0.51352286,97741.0,97740.0,0.007]
[1735848985883,0.15,97727.0,97700.0,0.275171]
[1735848986093,0.204706,97701.0,97700.0,0.275171]
[1735848986302,0.204706,97701.0,97700.0,0.27521995]
[1735848987150,0.204706,97701.0,97700.0,0.27621995]
[1735848987280,0.204706,97701.0,97700.0,0.27721995]
[1735848987501,0.209706,97701.0,97700.0,0.27721995]
[1735848987724,0.209706,97701.0,97700.0,0.27621995]
[1735848988079,0.212706,97701.0,97700.0,0.20121995]
[1735848988285,0.36719505,97701.0,97700.0,0.20121995]
[1735848989144,0.37775117,97701.0,97700.0,0.20121995]
[1735848991363,0.50473749,97701.0,97700.0,0.20121995]
[1735848992607,0.50173749,97701.0,97700.0,0.20121995]
[1735848993020,0.49673749,97701.0,97700.0,0.20421995]
[1735848993429,0.49673749,97701.0,97700.0,0.20921995]
[1735848996286,0.49673749,97701.0,97700.0,0.20021995]
[1735848996648,0.49673749,97701.0,97700.0,0.20321995]
[1735848996892,0.49673749,97701.0,97700.0,0.20421995]
[1735848997097,0.49673749,97701.0,97700.0,0.20121995]
[1735848997556,0.49673749,97701.0,97700.0,0.20321995]
[1735848997756,0.49673749,97701.0,97700.0,0.20221995]
[1735848998287,0.49773749,97701.0,97700.0,0.20221995]
[1735849002262,0.49773749,97701.0,97700.0,0.28181995]
[1735849002263,0.37075117,97701.0,97700.0,0.28181995]
[1735849003275,0.36975117,97701.0,97700.0,0.27981995]
[1735849003477,0.47473749,97701.0,97700.0,0.20521995]
[1735849003681,0.49873749,97701.0,97700.0,0.21221995]
[1735849004287,0.49773749,97701.0,97700.0,0.20721995]
[1735849004523,0.49673749,97701.0,97700.0,0.20021995]
[1735849004727,0.49673749,97701.0,97700.0,0.20421995]
[1735849005194,0.49673749,97701.0,97700.0,0.20921995]
[1735849005950,0.49673749,97701.0,97700.0,0.20521995]
[1735849006154,0.49673749,97701.0,97700.0,0.21021995]
[1735849006461,0.49673749,97701.0,97700.0,0.20521995]
[1735849006664,0.49773749,97701.0,97700.0,0.20721995]
[1735849007076,0.49773749,97701.0,97700.0,0.20421995]
[1735849007077,0.49673749,97701.0,97700.0,0.20421995]
[1735849007489,0.49673749,97701.0,97700.0,0.20921995]
[1735849008022,0.49673749,97701.0,97700.0,0.20521995]
[1735849008225,0.49673749,97701.0,97700.0,0.20021995]
[1735849009145,0.49673749,97701.0,97700.0,0.20321995]
[1735849009556,0.49673749,97701.0,97700.0,0.20521995]
[1735849012801,0.36975117,97701.0,97700.0,0.28171995]
[1735849013453,0.21975117,97701.0,97700.0,0.35216482]
[1735849013669,0.21975117,97701.0,97700.0,0.39986482]
[1735849014549,0.21975117,97701.0,97700.0,0.39786482]
[1735849014742,0.21975117,97701.0,97700.0,0.40086482]
[1735849014879,0.21975117,97701.0,97700.0,0.33041995]
[1735849015345,0.21975117,97701.0,97700.0,0.32741995]
[1735849015748,0.21975117,97701.0,97700.0,0.33041995]
[1735849015972,0.21975117,97701.0,97700.0,0.27971995]
[1735849016125,0.21975117,97701.0,97700.0,0.20021995]
[1735849016475,0.34773749,97701.0,97700.0,0.21021995]
[1735849020872,0.49773749,97701.0,97700.0,0.21021995]
[1735849021521,0.52971833,97701.0,97700.0,0.21021995]
[1735849022609,0.52971833,97701.0,97700.0,0.20621995]
[1735849022835,0.52971833,97701.0,97700.0,0.20921995]
[1735849023867,0.52871833,97701.0,97700.0,0.20321995]
[1735849024296,0.52871833,97701.0,97700.0,0.20621995]
[1735849027381,0.52871833,97701.0,97700.0,0.1689242]
[1735849028389,0.52871833,97701.0,97700.0,0.1659242]
[1735849028707,0.71297798,97701.0,97700.0,0.1599242]
[1735849028930,0.74253311,97701.0,97700.0,0.08363929]
[1735849029145,0.84253311,97701.0,97700.0,0.02274234]
[1735849029513,0.65927346,97701.0,97700.0,0.02274234]
[1735849029715,0.65927346,97701.0,97700.0,0.02174234]
[1735849029943,0.52971833,97701.0,97700.0,0.02174234]
[1735849030102,0.62871833,97701.0,97700.0,0.02174234]
[1735849030308,0.63071833,97701.0,97700.0,0.02174234]
[1735849030510,0.62871833,97701.0,97700.0,0.02174234]
[1735849030919,0.63371833,97701.0,97700.0,0.02174234]
[1735849032022,0.77175795,97701.0,97700.0,0.02174234]
[1735849032227,0.77075795,97701.0,97700.0,0.02174234]
[1735849033225,0.64775795,97701.0,97700.0,0.02174234]
[1735849033440,0.22375117,97701.0,97700.0,0.02174234]
[1735849033656,0.00848905,97701.0,97700.0,0.21998721]
[1735849034088,0.00848905,97701.0,97700.0,1.71998721]
[1735849034303,0.00448905,97701.0,97700.0,1.71998721]
[1735849034770,0.00548905,97701.0,97700.0,1.71998721]
[1735849034976,0.00448905,97701.0,97700.0,1.71998721]
[1735849035183,0.00448905,97701.0,97700.0,1.72798721]
[1735849035366,0.00548905,97701.0,97700.0,1.72798721]
[1735849035617,0.00548905,97701.0,97700.0,1.72898721]
[1735849036065,0.00548905,97701.0,97700.0,1.72798721]
[1735849036486,0.00548905,97701.0,97700.0,0.23298721]
[1735849036881,0.00548905,97701.0,97700.0,1.73298721]
[1735849039344,0.00548905,97701.0,97700.0,0.16254234]
[1735849039590,0.00548905,97701.0,97700.0,0.11394234]
[1735849043218,0.01584739,97701.0,97700.0,0.11394234]
[1735849043454,0.00548905,97701.0,97700.0,0.11394234]
[1735849045576,0.00548905,97701.0,97700.0,0.03474234]
[1735849045819,0.28247537,97701.0,97700.0,0.03474234]
[1735849046050,0.31441726,97701.0,97700.0,0.03474234]
[1735849047110,0.31341726,97701.0,97700.0,0.02674234]
[1735849047559,0.31341726,97701.0,97700.0,0.02974234]
[1735849047764,0.31341726,97701.0,97700.0,0.02674234]
[1735849047966,0.31341726,97701.0,97700.0,0.02174234]
[1735849048151,0.31441726,97701.0,97700.0,0.02474234]
[1735849048279,0.31341726,97701.0,97700.0,0.02474234]
[1735849048747,0.31541726,97701.0,97700.0,0.02174234]
[1735849048906,0.31541726,97701.0,97700.0,0.02274234]
[1735849049312,0.49945329,97701.0,97700.0,0.02274234]
[1735849049514,0.49953889,97701.0,97700.0,0.02274234]
[1735849051993,0.34061068,97701.0,97700.0,0.10424234]
[1735849052201,0.34061068,97701.0,97700.0,0.15194234]
[1735849052924,0.15657465,97701.0,97700.0,0.15194234]
[1735849053281,0.15657465,97701.0,97700.0,0.22238721]
[1735849054124,0.15657465,97701.0,97700.0,0.22138721]
[1735849054534,0.15457465,97701.0,97700.0,0.22238721]
[1735849054738,0.00457465,97701.0,97700.0,0.22238721]
[1735849054896,0.00457465,97701.0,97700.0,0.22738721]
[1735849055102,0.00457465,97701.0,97700.0,0.22638721]
[1735849055302,0.00457465,97701.0,97700.0,0.23038721]
[1735849055888,0.00457465,97701.0,97700.0,0.22638721]
[1735849056728,0.00457465,97701.0,97700.0,0.22138721]
[1735849057126,0.00557465,97701.0,97700.0,0.22738721]
[1735849057354,0.00457465,97701.0,97700.0,0.22538721]
[1735849057505,0.00457465,97701.0,97700.0,1.72538721]
[1735849057712,0.00557465,97701.0,97700.0,1.73038721]
[1735849058127,0.00657465,97701.0,97700.0,1.73738721]
[1735849058369,0.00557465,97701.0,97700.0,1.72838721]
[1735849059011,0.204642,97732.0,97727.0,0.15114487]
[1735849059227,0.15,97733.0,97727.0,0.15114487]
[1735849059705,0.15,97733.0,97727.0,1.65114487]
[1735849060100,0.15,97729.0,97727.0,1.65114487]
[1735849060302,0.16060826,97729.0,97727.0,1.65114487]
[1735849060705,0.16060826,97729.0,97727.0,0.15114487]
[1735849061035,0.16060826,97729.0,97727.0,0.0807]
[1735849061248,0.16060826,97729.0,97727.0,0.0867]
[1735849061699,0.16060826,97729.0,97727.0,0.0807]
[1735849062057,0.0010855,97728.0,97727.0,0.0927]
[1735849066700,0.0010855,97728.0,97727.0,0.16314487]
[1735849066922,0.27807182,97728.0,97727.0,0.012]
[1735849067782,0.204687,97710.0,97709.0,0.0764]
[1735849069226,0.213687,97710.0,97709.0,0.0774]
[1735849070085,0.059,97719.0,97709.0,0.14784487]
[1735849070317,0.204651,97727.0,97726.0,0.07044487]
[1735849070526,0.204651,97727.0,97726.0,0.19824487]
[1735849070735,0.204651,97727.0,97726.0,1.69824487]
[1735849070913,0.204651,97727.0,97726.0,0.19824487]
[1735849071599,0.204651,97727.0,97726.0,0.20424487]
[1735849071600,0.205651,97727.0,97726.0,0.20424487]
[1735849071812,0.204651,97727.0,97726.0,0.19824487]
[1735849072026,0.205651,97727.0,97726.0,0.20324487]
[1735849072207,0.206651,97727.0,97726.0,0.21024487]
[1735849073546,0.205651,97727.0,97726.0,0.20524487]
[1735849073761,0.206651,97727.0,97726.0,0.21224487]
[1735849077167,0.002,97727.0,97726.0,0.21224487]
[1735849078821,0.002,97727.0,97726.0,1.71224487]
[1735849080166,0.002,97727.0,97726.0,1.81224487]
[1735849081358,0.002,97727.0,97726.0,1.71224487]
[1735849081565,0.002,97727.0,97726.0,0.21224487]
[1735849084795,0.002,97727.0,97726.0,0.31224487]
[1735849085650,0.002,97727.0,97726.0,1.81224487]
[1735849085995,0.0020855,97727.0,97726.0,1.81224487]
[1735849088634,0.0020855,97727.0,97726.0,0.31224487]
[1735849089060,0.0020855,97727.0,97726.0,1.81224487]
[1735849091166,0.0020855,97727.0,97726.0,2.01689787]
[1735849091282,0.0020855,97727.0,97726.0,1.81224487]
[1735849093144,0.0020855,97727.0,97726.0,1.91623119]
[1735849093347,0.0020855,97727.0,97726.0,1.9263967]
[1735849093767,0.0010855,97727.0,97726.0,1.9193967]
[1735849093970,0.0030855,97727.0,97726.0,1.9193967]
[1735849094241,0.204572,97765.0,97742.0,0.50516487]
[1735849094537,0.20458,97762.0,97742.0,0.60915119]
[1735849094738,0.204586,97759.0,97742.0,1.12070119]
[1735849094946,0.204586,97759.0,97742.0,2.62070119]
[1735849095322,0.204599,97753.0,97742.0,2.51671487]
[1735849096493,0.204599,97753.0,97742.0,2.51871487]
[1735849097128,0.01031497,97756.0,97742.0,2.51871487]
[1735849097342,0.204577,97763.0,97742.0,2.82460119]
[1735849097985,0.204585,97759.0,97742.0,2.82460119]
[1735849098188,0.01052481,97760.0,97742.0,2.82360119]
[1735849098383,0.204572,97765.0,97742.0,2.82460119]
[1735849098598,0.0020855,97743.0,97742.0,2.82360119]
[1735849098816,0.0040855,97743.0,97742.0,3.02460119]
[1735849099028,0.204552,97775.0,97748.0,0.50455187]
[1735849099241,0.204552,97775.0,97748.0,1.12005819]
[1735849099662,0.0001875,97788.0,97748.0,2.62005819]
[1735849099859,0.204539,97781.0,97748.0,2.62005819]
[1735849100109,0.0001875,97788.0,97784.0,0.07044487]
[1735849100314,0.20501961,97785.0,97784.0,0.58177487]
[1735849101448,0.20501961,97785.0,97784.0,2.08177487]
[1735849101645,0.21532645,97785.0,97784.0,2.08177487]
[1735849101855,0.21532645,97785.0,97784.0,2.08277487]
[1735849102063,0.01079645,97785.0,97784.0,2.08277487]
[1735849102266,0.00048961,97785.0,97784.0,2.08277487]
[1735849102478,0.00048961,97785.0,97784.0,2.08677487]
[1735849103113,0.00048961,97785.0,97784.0,2.08177487]
[1735849104101,0.00048961,97785.0,97784.0,2.08277487]
[1735849104502,0.00048961,97785.0,97784.0,2.08677487]
[1735849104722,0.00048961,97785.0,97784.0,2.08277487]
[1735849104923,0.00048961,97785.0,97784.0,2.08377487]
[1735849105582,0.20501961,97785.0,97784.0,2.08377487]
[1735849105984,0.00048961,97785.0,97784.0,2.08377487]
[1735849106361,0.20501961,97785.0,97784.0,2.08177487]
[1735849106765,0.00048961,97785.0,97784.0,2.08177487]
[1735849107043,0.20501961,97785.0,97784.0,2.08177487]
[1735849107518,0.20501961,97785.0,97784.0,2.08977487]
[1735849108086,0.21301961,97785.0,97784.0,2.09077487]
[1735849108490,0.20501961,97785.0,97784.0,2.08977487]
[1735849108888,0.00048961,97785.0,97784.0,2.08977487]
[1735849109317,0.00148961,97785.0,97784.0,2.09877487]
[1735849111260,0.00148961,97785.0,97784.0,2.02833]
[1735849111478,0.00157511,97785.0,97784.0,2.02833]
[1735849112109,0.00057511,97785.0,97784.0,2.01933]
[1735849112509,0.00057511,97785.0,97784.0,2.02033]
[1735849112510,0.00157511,97785.0,97784.0,2.02033]
[1735849113349,0.00257511,97785.0,97784.0,2.02933]
[1735849113678,0.10656143,97785.0,97784.0,2.02933]
[1735849113892,0.10556143,97785.0,97784.0,2.02033]
[1735849114096,0.27856143,97785.0,97784.0,0.52033]
[1735849114301,0.27856143,97785.0,97730.0,0.09053555]
[1735849114302,0.204631,97737.0,97730.0,0.09053555]
[1735849114485,0.023,97767.0,97739.0,0.07044487]
[1735849114658,0.204632,97736.0,97735.0,0.07044487]
[1735849115057,0.204632,97736.0,97735.0,1.57044487]
[1735849115480,0.21477737,97736.0,97735.0,1.57044487]
[1735849115904,0.204632,97736.0,97735.0,1.57044487]
[1735849116107,0.213632,97736.0,97735.0,1.57144487]
[1735849116312,0.009,97736.0,97735.0,1.67144487]
[1735849116528,0.009,97736.0,97735.0,1.67244487]
[1735849116773,0.018,97736.0,97735.0,1.67244487]
[1735849117511,0.018,97736.0,97735.0,1.57244487]
[1735849121236,0.018,97736.0,97735.0,1.98106519]
[1735849121409,8.55e-05,97785.0,97764.0,0.07044487]
[1735849121608,0.01076623,97785.0,97777.0,0.07044487]
[1735849121816,0.204544,97778.0,97777.0,0.07044487]
[1735849122015,0.204544,97778.0,97777.0,1.57044487]
[1735849123615,0.205544,97778.0,97777.0,1.57644487]
[1735849124905,0.205544,97778.0,97777.0,1.506]
[1735849125739,0.205544,97778.0,97777.0,1.514]
[1735849127643,0.001,97778.0,97777.0,1.58444487]
[1735849128515,0.001,97778.0,97777.0,1.66244487]
[1735849128728,0.001,97778.0,97777.0,1.86699187]
[1735849128940,0.001,97778.0,97777.0,1.97097819]
[1735849129369,0.0002323,97785.0,97784.0,0.304532]
[1735849129984,0.0002323,97785.0,97784.0,1.804532]
[1735849130189,0.0002323,97785.0,97784.0,2.02476319]
[1735849130402,0.0002323,97785.0,97784.0,2.20446319]
[1735849130615,0.0050856,97799.0,97787.0,0.17044487]
[1735849130807,0.00067701,97788.0,97787.0,0.35413119]
[1735849131249,0.00067701,97788.0,97787.0,1.85413119]
[1735849132503,0.00167701,97788.0,97787.0,1.85513119]
[1735849132713,0.00867701,97788.0,97787.0,1.85613119]
[1735849133174,0.0050856,97799.0,97789.0,0.07044487]
[1735849133380,0.0050856,97799.0,97789.0,0.35033119]
[1735849133839,0.0050856,97799.0,97789.0,1.85033119]
[1735849134051,0.0050856,97799.0,97789.0,1.75033119]
[1735849134273,0.0050856,97799.0,97789.0,2.36163119]
[1735849134490,0.0050856,97799.0,97789.0,2.36263119]
[1735849134701,0.0050856,97799.0,97789.0,2.26263119]
[1735849135549,0.204574,97798.0,97789.0,2.15864487]
[1735849135787,0.0050855,97790.0,97789.0,2.15864487]
[1735849135992,0.0070855,97790.0,97789.0,2.15964487]
[1735849141346,0.2116045,97790.0,97789.0,2.08374487]
[1735849142384,0.0070855,97790.0,97789.0,2.08374487]
[1735849144520,0.0070855,97790.0,97789.0,2.46725219]
[1735849146426,0.0070855,97790.0,97789.0,2.36326587]
[1735849146871,0.0070855,97790.0,97789.0,2.46725219]
[1735849147340,7e-05,97798.0,97797.0,0.37494987]
[1735849147596,7e-05,97798.0,97797.0,1.42009619]
[1735849148074,7e-05,97798.0,97797.0,2.92009619]
[1735849148866,0.00307,97798.0,97797.0,2.92209619]
[1735849150059,0.00307,97798.0,97797.0,2.82209619]
[1735849150280,7e-05,97798.0,97797.0,2.82009619]
[1735849150519,7e-05,97798.0,97797.0,2.82109619]
[1735849150520,0.00107,97798.0,97797.0,2.82109619]
[1735849151442,0.00097888,97798.0,97797.0,2.82109619]
[1735849151684,0.00097888,97798.0,97797.0,2.82209619]
[1735849151889,0.00097888,97798.0,97797.0,2.82109619]
[1735849152316,0.00097888,97798.0,97797.0,2.82209619]
[1735849154000,0.00097888,97798.0,97797.0,2.61759119]
[1735849155264,0.00097888,97798.0,97797.0,2.71759119]
[1735849155689,0.00097888,97798.0,97797.0,2.54714632]
[1735849155897,0.00097888,97798.0,97797.0,2.71759119]
[1735849157196,0.00097888,97798.0,97797.0,2.61759119]
[1735849157869,0.00097888,97798.0,97797.0,2.71759119]
[1735849158397,0.00097888,97798.0,97797.0,2.61759119]
[1735849160759,0.00097888,97798.0,97797.0,0.78550487]
[1735849161240,0.00097888,97798.0,97797.0,2.28550487]
[1735849161671,8.54e-05,97798.0,97797.0,2.28450487]
[1735849161889,8.54e-05,97798.0,97797.0,2.39050487]
[1735849162114,8.54e-05,97798.0,97797.0,2.39950487]
[1735849162775,8.54e-05,97798.0,97797.0,2.39050487]
[1735849163189,8.54e-05,97798.0,97797.0,2.39950487]
[1735849163403,8.54e-05,97798.0,97797.0,2.38350487]
[1735849163610,8.54e-05,97798.0,97797.0,2.82189619]
[1735849163845,0.0010854,97798.0,97797.0,2.83189619]
[1735849164212,8.54e-05,97798.0,97797.0,2.82289619]
[1735849164410,8.54e-05,97798.0,97797.0,2.46630487]
[1735849168384,8.54e-05,97798.0,97797.0,2.67080987]
[1735849171008,8.54e-05,97798.0,97797.0,2.38450487]
[1735849171239,8.54e-05,97798.0,97797.0,0.78450487]
[1735849174100,8.54e-05,97798.0,97797.0,2.28467567]
[1735849174572,8.54e-05,97798.0,97797.0,2.38467567]
[1735849177220,8.54e-05,97798.0,97797.0,2.38455049]
[1735849179961,8.54e-05,97798.0,97797.0,2.46525049]
[1735849180665,0.00012552,97798.0,97797.0,2.46525049]
[1735849181550,0.00012552,97798.0,97797.0,2.46425049]
[1735849181990,0.00712552,97798.0,97797.0,2.46525049]
[1735849182217,0.00712552,97798.0,97797.0,2.46425049]
[1735849182643,0.01512552,97798.0,97797.0,2.46525049]
[1735849183282,0.02412552,97798.0,97797.0,2.46625049]
[1735849185015,0.02412552,97798.0,97797.0,0.96625049]
[1735849185461,0.02412552,97798.0,97797.0,2.46625049]
[1735849188176,0.02412552,97798.0,97797.0,2.67075549]
[1735849189115,0.02412552,97798.0,97797.0,2.82164181]
[1735849189323,0.02412552,97798.0,97797.0,2.92164181]
[1735849191500,0.02412552,97798.0,97797.0,3.25777227]
[1735849192703,0.02412552,97798.0,97797.0,2.92164181]
[1735849194776,0.02412552,97798.0,97797.0,3.02164181]
[1735849194984,0.02412552,97798.0,97797.0,2.92164181]
[1735849195211,0.02412552,97798.0,97797.0,3.25771468]
[1735849196614,0.02412552,97798.0,97797.0,2.92164181]
[1735849197681,0.02412552,97798.0,97797.0,3.01270883]
[1735849198772,0.02412552,97798.0,97797.0,2.92164181]
[1735849200361,0.017,97798.0,97797.0,3.02164181]
[1735849200582,0.0050856,97799.0,97798.0,0.24544487]
[1735849200782,0.0050856,97799.0,97798.0,0.86069119]
[1735849201189,0.0050856,97799.0,97798.0,2.36069119]
[1735849201657,0.0050856,97799.0,97798.0,2.46069119]
[1735849201877,0.0140856,97799.0,97798.0,2.46169119]
[1735849202084,8.55e-05,97812.0,97810.0,0.44992287]
[1735849202303,8.55e-05,97812.0,97810.0,1.06510919]
[1735849202509,8.55e-05,97812.0,97810.0,1.11240919]
[1735849202717,8.55e-05,97812.0,97810.0,2.61240919]
[1735849203193,8.55e-05,97825.0,97824.0,0.69989287]
[1735849203406,0.00023229,97825.0,97824.0,1.51667401]
[1735849203825,0.00023229,97825.0,97824.0,3.01667401]
[1735849204471,0.00023229,97825.0,97824.0,3.28964585]
[1735849204672,0.00023229,97825.0,97824.0,3.13304001]
[1735849204880,0.00023229,97825.0,97824.0,3.01667401]
[1735849205089,0.00023229,97825.0,97824.0,3.01767401]
[1735849205297,0.001,97837.0,97826.0,0.29874487]
[1735849205506,0.001,97837.0,97826.0,1.18705019]
[1735849205712,0.001,97837.0,97826.0,0.91384119]
[1735849205935,0.001,97837.0,97826.0,2.41384119]
[1735849206781,0.001,97837.0,97826.0,2.50480359]
[1735849207405,0.001,97837.0,97829.0,0.42044487]
[1735849207612,0.001,97837.0,97829.0,1.18683119]
[1735849207843,0.01166127,97865.0,97864.0,0.07044487]
[1735849208089,0.01166127,97865.0,97864.0,1.57044487]
[1735849208296,0.01171019,97865.0,97864.0,1.57044487]
[1735849209161,0.01171019,97865.0,97864.0,1.57944487]
[1735849209344,0.01171019,97865.0,97864.0,1.58844487]
[1735849209726,0.01171019,97865.0,97864.0,1.57944487]
[1735849209940,0.01171019,97865.0,97864.0,0.07944487]
[1735849210521,0.01171019,97865.0,97864.0,0.009]
[1735849210522,0.31989651,97865.0,97864.0,0.009]
[1735849210960,0.204394,97850.0,97849.0,0.07044487]
[1735849212386,0.204394,97850.0,97849.0,0.07944487]
[1735849212718,0.204394,97850.0,97849.0,0.08844487]
[1735849213501,0.204394,97850.0,97849.0,0.018]
[1735849213749,0.33128923,97850.0,97849.0,0.018]
[1735849214182,0.48218923,97850.0,97849.0,0.018]
[1735849214400,0.49244842,97850.0,97849.0,0.018]
[1735849215144,0.49244842,97850.0,97849.0,0.009]
[1735849215525,0.49244842,97850.0,97849.0,0.018]
[1735849215761,0.49244842,97850.0,97849.0,0.009]
[1735849215938,0.49244842,97850.0,97849.0,0.018]
[1735849219519,0.49253392,97850.0,97849.0,0.018]
[1735849221874,0.59253392,97850.0,97849.0,0.018]
[1735849222098,0.15,97830.0,97829.0,0.5111]
[1735849222312,0.15,97830.0,97811.0,0.07044487]
[1735849222313,0.204473,97812.0,97811.0,0.07044487]
[1735849222448,0.204473,97812.0,97811.0,1.57044487]
[1735849223299,0.204467,97815.0,97811.0,1.57044487]
[1735849223534,0.20435037,97821.0,97820.0,0.07044487]
[1735849224164,0.20435037,97821.0,97811.0,0.00014679]
[1735849224165,0.204473,97812.0,97811.0,0.00014679]
[1735849224391,0.48145932,97812.0,97811.0,0.00014679]
[1735849224630,0.48645932,97812.0,97811.0,0.00114679]
[1735849225037,0.48145932,97812.0,97811.0,0.00014679]
[1735849225452,0.48745932,97812.0,97811.0,0.00114679]
[1735849225682,0.48145932,97812.0,97811.0,0.00014679]
[1735849226096,0.48145932,97812.0,97811.0,0.00914679]
[1735849227416,0.48145932,97812.0,97811.0,0.01814679]
[1735849227773,0.354473,97812.0,97811.0,0.01814679]
[1735849228014,0.354473,97812.0,97811.0,0.00914679]
[1735849228159,0.354473,97812.0,97811.0,1.50914679]
[1735849228599,0.001,97812.0,97811.0,1.58759166]
[1735849229681,0.001,97812.0,97811.0,1.57859166]
[1735849229868,0.205473,97812.0,97811.0,1.57959166]
[1735849230086,0.001,97812.0,97811.0,1.57959166]
[1735849230292,0.001,97812.0,97811.0,1.87959166]
[1735849230495,0.204465,97816.0,97811.0,1.87059166]
[1735849230695,0.204462,97818.0,97811.0,1.87059166]
[1735849230898,0.204462,97818.0,97811.0,1.87259166]
[1735849231130,0.204462,97818.0,97817.0,0.07044487]
[1735849232579,0.21472561,97824.0,97821.0,0.07044487]
[1735849232873,0.204426,97835.0,97828.0,0.07044487]
[1735849233225,0.01038555,97833.0,97828.0,1.57044487]
[1735849233456,0.204433,97832.0,97828.0,1.57044487]
[1735849233869,0.204434,97831.0,97828.0,1.57044487]
[1735849234072,0.1,97866.0,97828.0,1.74734487]
[1735849234272,0.204406,97845.0,97828.0,1.74734487]
[1735849234496,0.204406,97845.0,97828.0,1.74834487]
[1735849235387,0.204391,97852.0,97828.0,1.89643119]
[1735849235606,0.01166127,97865.0,97828.0,2.09643119]
[1735849235821,0.204383,97856.0,97828.0,2.09643119]
[1735849236237,0.01166127,97865.0,97849.0,0.14744487]
[1735849236450,0.204369,97862.0,97849.0,0.19254487]
[1735849237091,0.204369,97862.0,97849.0,1.69254487]
[1735849237558,0.204369,97862.0,97849.0,1.69354487]
[1735849237974,0.204369,97862.0,97849.0,1.69454487]
[1735849238410,0.204369,97862.0,97849.0,1.6241]
[1735849238411,0.204379,97858.0,97849.0,1.6241]
[1735849238631,0.204379,97858.0,97849.0,1.69454487]
[1735849238852,0.204379,97858.0,97849.0,1.6241]
[1735849239029,0.204379,97858.0,97849.0,1.69454487]
[1735849239857,0.204388,97853.0,97849.0,1.69454487]
[1735849240060,0.204379,97858.0,97849.0,0.14944487]
[1735849240474,0.204388,97853.0,97849.0,0.14944487]
[1735849240684,0.204388,97853.0,97849.0,1.64944487]
[1735849241692,0.204388,97853.0,97849.0,0.14944487]
[1735849244951,0.20438,97857.0,97849.0,0.14944487]
[1735849245836,0.01166127,97865.0,97849.0,0.45782719]
[1735849246287,0.01166127,97865.0,97849.0,0.45582719]
[1735849246692,0.01166127,97865.0,97849.0,1.95682719]
[1735849246902,0.01166127,97865.0,97849.0,2.00182719]
[1735849247113,0.01166127,97865.0,97849.0,2.00282719]
[1735849247731,0.01166127,97865.0,97860.0,0.1]
[1735849247941,0.01180804,97865.0,97860.0,0.1]
[1735849248797,0.01180804,97865.0,97864.0,0.07044487]
[1735849249716,0.01180804,97865.0,97864.0,1.57044487]
[1735849249955,0.01180804,97865.0,97864.0,1.65054487]
[1735849252610,0.01180804,97865.0,97864.0,1.5]
[1735849252820,0.01180804,97865.0,97864.0,0.07044487]
[1735849253233,0.01180804,97865.0,97864.0,1.57044487]
[1735849253458,0.01180804,97865.0,97864.0,1.57144487]
[1735849253727,0.01180804,97865.0,97864.0,1.57044487]
[1735849254196,0.01180804,97865.0,97864.0,1.57144487]
[1735849254943,0.01780804,97865.0,97864.0,1.64874487]
[1735849256264,0.01189354,97865.0,97864.0,1.64874487]
[1735849256463,0.01289354,97865.0,97864.0,1.64774487]
[1735849256679,0.01789354,97865.0,97864.0,1.64874487]
[1735849258591,0.01689354,97865.0,97864.0,1.64874487]
[1735849259007,0.01889354,97865.0,97864.0,1.64874487]
[1735849259922,0.01889354,97865.0,97864.0,0.14874487]
[1735849260352,0.01889354,97865.0,97864.0,1.64874487]
[1735849260807,0.01889354,97865.0,97864.0,0.001]
[1735849261041,0.354394,97850.0,97849.0,0.000171]
[1735849261277,0.354394,97850.0,97831.0,0.07044487]
[1735849261278,0.173,97849.0,97846.0,0.0909624]
[1735849261424,0.3774,97847.0,97846.0,0.0909624]
[1735849261657,0.61094145,97847.0,97846.0,0.0705224]
[1735849261854,0.50697013,97840.0,97839.0,0.145638]
[1735849262027,0.50697013,97840.0,97813.0,0.07044487]
[1735849262028,0.204459,97819.0,97813.0,0.07044487]
[1735849262233,0.204459,97819.0,97811.0,0.300171]
[1735849262234,0.204459,97819.0,97818.0,0.07044487]
[1735849262431,0.173,97837.0,97813.0,0.07044487]
[1735849262640,0.204459,97819.0,97818.0,0.51115]
[1735849262847,0.33144532,97819.0,97818.0,0.51115]
[1735849263046,0.204459,97819.0,97818.0,0.51115]
[1735849263306,0.204459,97819.0,97818.0,0.58159487]
[1735849263835,0.213459,97819.0,97818.0,0.58259487]
[1735849264447,0.220459,97819.0,97818.0,0.51315]
[1735849264660,0.220459,97819.0,97818.0,0.58359487]
[1735849265061,0.213459,97819.0,97818.0,0.58259487]
[1735849265260,0.220459,97819.0,97818.0,0.58359487]
[1735849265483,0.220459,97819.0,97818.0,0.51315]
[1735849266992,0.34744532,97819.0,97818.0,0.51315]
[1735849267171,0.49744532,97819.0,97818.0,0.51315]
[1735849268122,0.48144532,97819.0,97818.0,0.51115]
[1735849268544,0.48144532,97819.0,97818.0,0.520321]
[1735849268545,0.48244532,97819.0,97818.0,0.520321]
[1735849269623,0.48344532,97819.0,97818.0,0.529321]
[1735849272623,0.206459,97819.0,97818.0,0.529321]
[1735849272832,0.002,97819.0,97818.0,0.59976587]
[1735849273037,0.002,97819.0,97818.0,2.09976587]
[1735849273653,0.001,97819.0,97818.0,2.09076587]
[1735849273871,0.003,97819.0,97818.0,2.09076587]
[1735849274075,0.204457,97820.0,97818.0,2.08176587]
[1735849274466,0.009,97819.0,97818.0,2.08176587]
[1735849274876,0.009,97819.0,97818.0,2.08476587]
[1735849275287,0.009,97819.0,97818.0,2.08176587]
[1735849275730,0.016,97819.0,97818.0,2.08276587]
[1735849275935,0.016,97819.0,97818.0,2.012321]
[1735849276113,0.007,97819.0,97818.0,2.012321]
[1735849276321,0.007,97819.0,97818.0,2.013321]
[1735849276523,0.007,97819.0,97818.0,2.012321]
[1735849276930,0.009,97819.0,97818.0,2.08376587]
[1735849279397,0.009,97819.0,97818.0,2.013321]
[1735849279571,0.009,97819.0,97818.0,0.513321]
[1735849279952,0.28598632,97819.0,97818.0,0.513321]
[1735849280810,0.27898632,97819.0,97818.0,0.512321]
[1735849281182,0.27998632,97819.0,97818.0,0.521321]
[1735849281583,0.27396632,97819.0,97818.0,0.521321]
[1735849281802,0.30252145,97819.0,97818.0,0.512321]
[1735849282020,0.30352145,97819.0,97818.0,0.521321]
[1735849282247,0.30352145,97819.0,97818.0,0.520321]
[1735849282474,0.30452145,97819.0,97818.0,0.529321]
[1735849282728,0.27496632,97819.0,97818.0,0.529321]
[1735849282965,0.30352145,97819.0,97818.0,0.520321]
[1735849283198,0.30452145,97819.0,97818.0,0.529321]
[1735849283413,0.27496632,97819.0,97818.0,0.529321]
[1735849283645,0.30452145,97819.0,97818.0,0.529321]